bitfinex/quotes_SOLUSD_20250929
["timestamp","ask_amount","ask_price","bid_price","bid_amount"]
[1759143616394,39.59559401,206.99,206.97,5.50161334]
[1759143616603,39.59559401,206.99,206.98,0.67]
[1759143616826,39.59559401,207.01,206.98,0.67]
[1759143617020,39.59559401,207.01,206.97,4.83161334]
[1759143617021,39.59559401,207.01,206.99,0.67]
[1759143617313,39.59559401,207.01,206.97,0.67000001]
[1759143617912,45.13636863,207.01,206.97,0.67000001]
[1759143618120,13.59559401,206.99,206.97,1e-08]
[1759143618508,0.71,206.99,206.97,1e-08]
[1759143618905,39.59559401,207.0,206.97,1e-08]
[1759143619105,5.54115126,206.99,206.97,1e-08]
[1759143619623,5.50250607,207.02,206.97,1e-08]
[1759143619825,13.59559401,206.99,206.98,0.67]
[1759143620411,13.59559401,206.99,206.97,1e-08]
[1759143620713,13.59559401,206.99,206.97,0.67000001]
[1759143621401,13.59559401,206.99,206.97,1e-08]
[1759143622108,18.42680228,206.99,206.97,1e-08]
[1759143622308,13.59559401,206.99,206.97,1e-08]
[1759143622821,18.42674834,206.99,206.97,1e-08]
[1759143623506,19.12674834,206.99,206.97,1e-08]
[1759143624610,18.42674834,206.99,206.97,1e-08]
[1759143624817,14.29559401,206.98,206.97,1e-08]
[1759143625198,19.12697868,206.98,206.97,1e-08]
[1759143627826,151.92697868,206.98,206.97,1e-08]
[1759143628020,167.21263115,206.98,206.97,1e-08]
[1759143628226,34.41263115,206.98,206.97,1e-08]
[1759143628760,34.41263115,206.98,206.84,4.83462225]
[1759143628761,13.59559401,206.89,206.84,0.7]
[1759143628917,13.59559401,206.89,206.82,0.7]
[1759143628918,13.59559401,206.85,206.82,0.7]
[1759143629316,13.59559401,206.85,206.83,0.7]
[1759143630333,13.59559401,206.85,206.84,0.7]
[1759143631725,13.59559401,206.88,206.84,0.7]
[1759143632317,13.59559401,206.88,206.83,4.83466973]
[1759143632531,13.59559401,206.88,206.85,0.7]
[1759143632730,13.59559401,206.88,206.86,0.7]
[1759143633037,13.59559401,206.88,206.87,0.7]
[1759143634609,13.59559401,206.88,206.8,12.08897485]
[1759143634816,13.59559401,206.88,206.85,0.7]
[1759143635040,13.59559401,206.88,206.86,0.7]
[1759143635217,13.59559401,206.88,206.8,12.08897485]
[1759143635417,13.59559401,206.88,206.87,0.7]
[1759143635813,13.59559401,206.88,206.85,0.7]
[1759143636014,13.59559401,206.88,206.86,0.7]
[1759143636631,13.59559401,206.88,206.84,4.83455402]
[1759143636938,13.59559401,206.88,206.8,12.08897485]
[1759143637133,13.59559401,206.88,206.85,0.7]
[1759143637640,13.59559401,206.88,206.81,4.83535612]
[1759143637834,13.59559401,206.88,206.82,0.7]
[1759143638144,13.59559401,206.84,206.82,0.7]
[1759143638532,13.59559401,206.87,206.83,0.7]
[1759143638741,13.59559401,206.87,206.84,0.7]
[1759143639343,13.59559401,206.87,206.81,0.7]
[1759143639344,14.29559401,206.87,206.81,0.7]
[1759143639945,13.59559401,206.87,206.81,0.7]
[1759143640952,13.59559401,206.87,206.82,4.83512232]
[1759143641158,13.59559401,206.87,206.83,0.7]
[1759143641659,13.59559401,206.87,206.84,0.7]
[1759143642162,13.59559401,206.87,206.85,0.7]
[1759143643531,13.59559401,206.93,206.86,0.7]
[1759143643829,39.59559401,206.93,206.86,0.7]
[1759143644036,13.59559401,206.93,206.86,0.7]
[1759143644966,13.59559401,206.93,206.87,16.91883791]
[1759143645131,13.59559401,206.93,206.88,0.7]
[1759143646234,13.59559401,206.93,206.89,0.7]
[1759143646457,13.59559401,206.93,206.9,0.7]
[1759143646860,13.59559401,206.93,206.88,0.7]
[1759143647040,13.59559401,206.93,206.89,4.83348639]
[1759143647231,13.59559401,206.93,206.9,0.7]
[1759143647849,13.59559401,206.93,206.89,4.83348639]
[1759143648057,13.59559401,206.93,206.89,5.53348639]
[1759143648634,13.59559401,206.93,206.88,4.83366913]
[1759143648853,13.59559401,206.91,206.84,12.78609383]
[1759143649053,14.29559401,206.91,206.85,4.83442107]
[1759143649357,19.12861752,206.91,206.85,4.83442107]
[1759143650455,14.29559401,206.91,206.85,4.83442107]
[1759143650659,19.12864433,206.91,206.85,4.83442107]
[1759143651553,26.0,206.93,206.85,4.83442107]
[1759143651554,13.59559401,206.92,206.86,0.69]
[1759143651853,26.0,206.93,206.86,0.69]
[1759143653550,26.0,206.93,206.87,16.91883791]
[1759143653860,13.59559401,206.93,206.88,0.69]
[1759143654251,0.72,206.92,206.87,4.83395369]
[1759143654564,0.72,206.91,206.87,4.83395369]
[1759143654953,0.72,206.9,206.85,4.8342315]
[1759143655157,0.72,206.89,206.85,4.8342315]
[1759143655950,0.72,206.89,206.84,4.8346548]
[1759143656145,0.72,206.89,206.84,5.5246548]
[1759143656549,13.59559401,206.87,206.82,37.62]
[1759143656849,0.72,206.86,206.82,37.62]
[1759143657568,0.72,206.86,206.82,43.14494416]
[1759143658075,13.59559401,206.85,206.81,4.83530054]
[1759143658270,0.72,206.86,206.81,4.83530054]
[1759143658271,4.8339969,206.87,206.81,42.45530054]
[1759143658444,5.5539969,206.87,206.81,42.45530054]
[1759143658966,0.72,206.87,206.82,0.69]
[1759143659270,0.72,206.87,206.83,0.69]
[1759143659774,39.59559401,206.88,206.83,5.5247666]
[1759143659942,45.14933816,206.88,206.83,5.5247666]
[1759143660141,45.14933816,206.88,206.83,0.69]
[1759143660342,0.72,206.87,206.81,43.14525957]
[1759143660656,39.59559401,206.88,206.82,0.69]
[1759143660851,0.72,206.91,206.82,0.69]
[1759143661050,13.59559401,206.92,206.82,0.69]
[1759143661448,15.26087197,206.95,206.82,0.69]
[1759143661651,0.72,206.95,206.83,16.92210993]
[1759143661862,13.59559401,206.93,206.84,0.69]
[1759143662544,38.32,206.96,206.84,0.69]
[1759143662746,0.72,206.96,206.84,0.69]
[1759143663443,267.71999999,206.94,206.84,0.69]
[1759143663642,267.71999999,206.94,206.85,37.62]
[1759143663950,267.71999999,206.94,206.86,17.6096558]
[1759143664157,266.99999999,206.94,206.88,2.24627493]
[1759143664355,266.99999999,206.94,206.89,0.69]
[1759143664556,266.99999999,206.94,206.9,0.69]
[1759143665953,266.99999999,206.94,206.9,5.52324231]
[1759143666442,14.31559401,206.93,206.84,37.62]
[1759143666645,0.72,206.92,206.84,37.62]
[1759143666860,0.72,206.92,206.84,38.31]
[1759143667269,0.72,206.91,206.84,38.31]
[1759143667572,0.72,206.91,206.85,0.69]
[1759143667776,14.31559401,206.93,206.86,37.62]
[1759143667958,14.31559401,206.93,206.87,4.83395369]
[1759143669072,13.59559401,206.93,206.87,4.83395369]
[1759143669282,13.59559401,206.93,206.87,17.60883791]
[1759143669851,0.72,206.92,206.87,16.91883791]
[1759143670074,0.72,206.91,206.87,16.91883791]
[1759143670272,13.59559401,206.93,206.87,16.91883791]
[1759143670578,14.31559401,206.93,206.87,17.60883791]
[1759143670877,266.99999999,206.94,206.88,0.69]
[1759143672076,266.99999999,206.94,206.9,16.91638471]
[1759143672255,266.99999999,206.94,206.9,55.22638471]
[1759143672456,266.99999999,206.94,206.9,54.53638471]
[1759143672882,266.99999999,206.94,206.91,0.69]
[1759143673468,266.99999999,206.94,206.92,0.68]
[1759143673650,266.99999999,206.94,206.93,0.68]
[1759143674375,266.99999999,206.94,206.93,5.51255207]
[1759143676174,267.71999999,206.94,206.86,0.68]
[1759143676380,266.99999999,206.94,206.86,64.28]
[1759143676560,266.99999999,206.94,206.87,0.68]
[1759143676754,266.99999999,206.94,206.87,2.92627493]
[1759143677186,266.99999999,206.94,206.88,0.68]
[1759143677871,266.99999999,206.94,206.9,2.24627493]
[1759143678180,266.99999999,206.94,206.91,38.36]
[1759143678383,266.99999999,206.94,206.92,4.83278561]
[1759143678764,266.99999999,206.94,206.92,5.51278561]
[1759143679471,266.99999999,206.94,206.92,7.75906054]
[1759143680067,266.99999999,206.94,206.93,0.68]
[1759143680258,266.99999999,206.94,206.93,5.51255207]
[1759143681374,266.99999999,206.94,206.93,4.83255207]
[1759143682382,267.66999999,206.94,206.89,19.1634773]
[1759143682564,0.67,206.93,206.9,37.68]
[1759143682765,0.67,206.92,206.89,4.83348639]
[1759143682979,0.67,206.91,206.89,4.83348639]
[1759143683181,0.67,206.9,206.89,42.51348639]
[1759143683485,0.67,206.9,206.88,4.83367321]
[1759143683655,0.67,206.9,206.88,42.53367321]
[1759143684570,0.67,206.89,206.85,4.83442107]
[1759143684771,0.67,206.89,206.87,37.68]
[1759143688083,13.59559401,206.93,206.87,42.51384944]
[1759143688384,13.59559401,206.93,206.88,0.7]
[1759143689272,14.26559401,206.93,206.89,4.83348639]
[1759143689472,266.99999999,206.94,206.9,0.7]
[1759143690194,266.99999999,206.94,206.89,16.91720237]
[1759143690195,266.99999999,206.94,206.91,38.36]
[1759143690398,266.99999999,206.94,206.92,0.7]
[1759143691190,266.99999999,206.94,206.93,4.83255207]
[1759143691378,266.99999999,206.94,206.93,5.53255207]
[1759143692191,235.54210734,206.94,206.93,5.53255207]
[1759143693464,131.93244388,206.94,206.93,5.53255207]
[1759143693676,0.67,207.05,206.93,41.77669259]
[1759143693977,0.67,207.05,206.99,2.24627493]
[1759143694297,0.67,207.05,207.0,37.7]
[1759143694490,0.67,207.04,207.0,37.7]
[1759143695901,0.67,207.04,207.01,4.8306845]
[1759143696385,26.67,207.06,207.01,4.8306845]
[1759143696686,0.67,207.05,207.01,4.8306845]
[1759143696885,0.67,207.09,207.02,0.7]
[1759143697095,0.67,207.09,207.03,37.68]
[1759143697270,0.67,207.08,207.03,37.68]
[1759143697469,0.67,207.07,207.03,37.68]
[1759143698198,0.67,207.07,207.04,4.82998454]
[1759143698767,49.74913198,207.14,207.05,0.7]
[1759143698768,42.50768354,207.14,207.05,0.7]
[1759143698991,0.67,207.12,207.06,37.66]
[1759143699875,0.67,207.11,207.06,37.66]
[1759143700186,0.67,207.13,207.08,4.82905157]
[1759143700491,0.67,207.12,207.07,42.4892514]
[1759143700701,0.67,207.11,207.07,42.4892514]
[1759143700998,0.67,207.11,207.07,4.8292514]
[1759143701178,0.67,207.11,207.08,37.64]
[1759143701382,26.67,207.13,207.08,37.64]
[1759143701981,26.0,207.13,207.09,0.7]
[1759143702277,26.0,207.13,207.09,5.52876268]
[1759143702481,26.67,207.13,207.09,4.82876268]
[1759143702785,0.2,207.15,207.09,17.60080865]
[1759143703175,0.2,207.15,207.09,5.52876268]
[1759143703983,0.2,207.15,207.1,0.7]
[1759143704184,0.2,207.15,207.11,0.7]
[1759143704396,0.2,207.15,207.12,37.62]
[1759143706086,0.67,207.14,207.12,37.62]
[1759143706405,13.59559401,207.1,207.04,4.82994334]
[1759143706603,0.67,207.09,207.03,37.66]
[1759143706898,26.67,207.08,207.04,37.66]
[1759143707801,0.67,207.11,207.05,0.7]
[1759143709100,5.498414,207.11,207.05,0.7]
[1759143709902,5.498414,207.11,207.05,5.52953058]
[1759143711403,5.498414,207.11,207.06,37.64]
[1759143712000,13.59559401,207.13,207.07,0.7]
[1759143713287,13.59559401,207.13,207.08,4.82905157]
[1759143713606,0.69,207.12,207.07,5.5292819]
[1759143714111,0.69,207.12,207.07,42.4492819]
[1759143714303,0.69,207.12,207.07,43.1492819]
[1759143714500,13.59559401,207.13,207.07,42.4492819]
[1759143714710,13.59559401,207.13,207.07,43.1492819]
[1759143714898,18.42351489,207.13,207.07,43.1492819]
[1759143715303,19.11351489,207.13,207.07,43.1492819]
[1759143716202,14.28559401,207.14,207.08,0.7]
[1759143717300,0.69,207.14,207.09,4.82881838]
[1759143717605,0.69,207.13,207.09,4.82881838]
[1759143718217,31.71742686,207.15,207.09,4.82881838]
[1759143718412,26.89,207.15,207.1,5.52848499]
[1759143718620,26.2,207.15,207.11,0.7]
[1759143719003,26.2,207.15,207.12,0.7]
[1759143719201,26.2,207.15,207.06,2.24627493]
[1759143719202,0.69,207.14,207.08,0.7]
[1759143719416,13.59559401,207.13,207.08,0.7]
[1759143719600,0.69,207.12,207.08,37.6]
[1759143719802,13.59559401,207.14,207.08,37.6]
[1759143719996,0.69,207.13,207.06,0.7]
[1759143720197,0.69,207.13,207.07,37.6]
[1759143720616,5.51798893,207.13,207.07,42.42906809]
[1759143721413,13.59559401,207.09,207.02,4.83022894]
[1759143721616,13.59559401,207.07,207.02,42.43022894]
[1759143721820,13.59559401,207.07,207.03,0.7]
[1759143723120,18.42490799,207.07,207.02,42.43022894]
[1759143723328,19.11490799,207.07,207.02,42.43022894]
[1759143723707,18.42490799,207.07,207.03,0.7]
[1759143723907,13.59559401,207.07,207.03,0.7]
[1759143724403,13.59559401,207.07,206.97,24.15804841]
[1759143724404,13.59559401,207.05,206.97,0.7]
[1759143724723,13.59559401,207.05,206.92,37.74]
[1759143724724,13.59559401,207.03,206.96,4.83185156]
[1759143724908,13.59559401,207.03,206.94,0.7]
[1759143724909,13.59559401,207.01,206.94,5.5321378]
[1759143725113,0.69,207.0,206.95,37.62]
[1759143725312,14.28559401,206.99,206.93,4.8325398]
[1759143725636,14.28559401,206.99,206.93,25.32]
[1759143726528,19.11688927,206.99,206.93,30.15246875]
[1759143726823,13.59559401,207.0,206.94,0.7]
[1759143727327,13.59559401,207.0,206.93,42.23384892]
[1759143727328,0.69,206.99,206.93,30.15246875]
[1759143727525,39.59559401,206.97,206.88,0.7]
[1759143727701,13.59559401,206.95,206.88,0.7]
[1759143727900,13.59559401,206.95,206.88,37.18]
[1759143728103,14.28559401,206.95,206.88,0.7]
[1759143728528,13.59559401,206.93,206.85,43.19429032]
[1759143728729,14.28559401,206.93,206.85,43.19429032]
[1759143728920,14.28559401,206.93,206.85,5.53429032]
[1759143729122,14.28559401,206.93,206.86,37.66]
[1759143729529,13.59559401,206.91,206.86,37.66]
[1759143729735,13.59559401,206.91,206.86,38.36]
[1759143730025,13.59559401,206.89,206.82,0.7]
[1759143730230,13.59559401,206.87,206.82,0.7]
[1759143730610,13.59559401,206.87,206.82,4.83509287]
[1759143730812,13.59559401,206.87,206.83,0.7]
[1759143731222,13.59559401,206.87,206.82,4.83509287]
[1759143731419,13.59559401,206.89,206.84,0.7]
[1759143731618,14.28559401,206.89,206.84,0.7]
[1759143732128,14.28559401,206.89,206.82,4.83509287]
[1759143732311,14.28559401,206.89,206.82,5.53509287]
[1759143734834,14.28559401,206.89,206.82,17.62289869]
[1759143735922,13.59559401,206.89,206.83,0.66]
[1759143736434,14.27559401,206.89,206.83,0.66]
[1759143736812,13.59559401,206.89,206.83,0.66]
[1759143737131,13.59559401,206.89,206.84,4.8346548]
[1759143737330,14.27559401,206.89,206.84,5.4946548]
[1759143738332,0.68,206.88,206.84,4.8346548]
[1759143739011,26.68,206.9,206.83,54.54210993]
[1759143739209,26.0,206.89,206.84,0.66]
[1759143739630,26.68,206.89,206.84,0.66]
[1759143739834,39.59559401,206.9,206.85,0.66]
[1759143740142,26.0,206.9,206.86,0.66]
[1759143740343,26.68,206.9,206.84,0.66]
[1759143740637,26.68,206.9,206.84,37.62]
[1759143741020,26.68,206.9,206.85,4.83442107]
[1759143741621,26.68,206.9,206.85,5.49442107]
[1759143742228,26.0,206.9,206.85,5.49442107]
[1759143742424,26.67,206.9,206.85,5.49442107]
[1759143742837,0.67,206.89,206.85,5.49442107]
[1759143743242,0.67,206.88,206.85,37.6]
[1759143743441,0.67,206.88,206.81,0.66]
[1759143743742,39.59559401,206.87,206.79,17.58538323]
[1759143744041,13.59559401,206.85,206.8,37.62]
[1759143744240,0.67,206.84,206.8,37.62]
[1759143744746,0.67,206.83,206.79,42.45582378]
[1759143745923,0.67,206.82,206.79,42.45582378]
[1759143746127,0.67,206.82,206.78,0.1]
[1759143746376,0.67,206.81,206.78,4.9360461]
[1759143747251,0.67,206.8,206.78,0.1]
[1759143747452,26.0,206.82,206.78,0.1]
[1759143747627,26.0,206.82,206.78,4.93597471]
[1759143747942,26.0,206.82,206.79,0.66]
[1759143748140,26.0,206.82,206.78,4.93597471]
[1759143748845,26.0,206.82,206.78,5.59597471]
[1759143749226,26.67,206.82,206.78,4.93597471]
[1759143749421,26.0,206.82,206.78,4.93597471]
[1759143749621,13.59559401,206.89,206.79,0.66]
[1759143749855,13.59559401,206.87,206.8,37.66]
[1759143750032,0.67,206.86,206.8,37.66]
[1759143751050,0.67,206.86,206.81,37.66]
[1759143751528,0.67,206.85,206.81,37.66]
[1759143751731,0.67,206.85,206.8,4.83556808]
[1759143751929,0.67,206.85,206.81,37.66]
[1759143752445,13.59559401,206.84,206.8,43.15556808]
[1759143753862,1.43599112,206.87,206.8,54.58454293]
[1759143754035,26.0,206.89,206.81,0.66]
[1759143754569,26.0,206.88,206.81,0.66]
[1759143755457,26.67,206.88,206.82,37.66]
[1759143755940,26.67,206.88,206.83,4.83488855]
[1759143756257,26.0,206.88,206.83,5.49488855]
[1759143756767,26.67,206.88,206.83,5.49488855]
[1759143757351,26.67,206.88,206.84,0.66]
[1759143758162,26.67,206.88,206.82,50.40778148]
[1759143758657,26.67,206.88,206.83,4.83488855]
[1759143758847,14.26559401,206.87,206.83,37.64]
[1759143759262,26.0,206.88,206.84,38.28]
[1759143759559,26.0,206.9,206.85,0.66]
[1759143759740,13.59559401,206.91,206.84,37.62]
[1759143760064,13.59559401,206.91,206.87,4.83395369]
[1759143760466,26.0,206.93,206.88,38.3]
[1759143760638,26.67,206.93,206.88,38.3]
[1759143760835,0.67,206.93,206.88,38.3]
[1759143761067,26.0,206.92,206.88,38.3]
[1759143761470,26.0,206.92,206.88,37.64]
[1759143761661,14.26559401,206.91,206.88,37.64]
[1759143761866,13.59559401,206.91,206.88,37.64]
[1759143762169,13.59559401,206.91,206.88,42.47370747]
[1759143762354,13.59559401,206.91,206.88,37.64]
[1759143762667,13.59559401,206.87,206.78,0.76]
[1759143762843,0.67,206.86,206.79,37.64]
[1759143763355,0.67,206.86,206.79,38.3]
[1759143763743,26.0,206.84,206.78,4.93601008]
[1759143763942,13.59559401,206.83,206.79,37.74]
[1759143764142,14.26559401,206.83,206.79,37.74]
[1759143765142,14.26559401,206.83,206.78,0.1]
[1759143765472,14.26559401,206.83,206.78,38.5]
[1759143765844,13.59559401,206.83,206.79,0.66]
[1759143766037,13.59559401,206.83,206.8,0.66]
[1759143767047,13.59559401,206.83,206.78,42.67601325]
[1759143767256,13.59559401,206.83,206.79,5.49578362]
[1759143767546,13.59559401,206.83,206.78,37.84]
[1759143767547,14.26559401,206.83,206.78,4.93600554]
[1759143767847,14.26559401,206.83,206.78,42.65600554]
[1759143768047,14.26559401,206.83,206.78,43.31600554]
[1759143768251,14.26559401,206.83,206.78,42.65600554]
[1759143768455,13.59559401,206.81,206.78,0.1]
[1759143768769,13.59559401,206.81,206.78,37.82]
[1759143769070,18.54863754,206.99,206.79,0.66]
[1759143769071,0.67,206.86,206.79,0.66]
[1759143769371,39.59559401,206.85,206.79,17.58519389]
[1759143769664,13.59559401,206.87,206.8,0.66]
[1759143770863,14.26559401,206.87,206.8,0.66]
[1759143771073,14.26559401,206.87,206.67,0.1]
[1759143771074,21.6899556,206.81,206.67,0.1]
[1759143771275,26.0,206.68,206.67,0.1]
[1759143771565,39.59559401,206.68,206.67,0.1]
[1759143773067,40.27559401,206.68,206.67,0.1]
[1759143773446,13.59559401,206.67,206.63,37.56]
[1759143773765,13.59559401,206.67,206.63,38.24]
[1759143774153,0.68,206.7,206.63,0.68]
[1759143774473,13.59559401,206.69,206.63,43.87952564]
[1759143774686,13.59559401,206.73,206.64,0.68]
[1759143774848,26.0,206.72,206.64,0.68]
[1759143775264,26.0,206.72,206.66,4.83886576]
[1759143775448,13.59559401,206.7,206.66,4.83886576]
[1759143775649,13.59559401,206.7,206.66,5.51886576]
[1759143776191,0.68,206.82,206.67,0.68]
[1759143777079,13.59559401,206.81,206.68,38.38]
[1759143777248,13.59559401,206.79,206.69,39.06]
[1759143777449,13.59559401,206.79,206.7,39.06]
[1759143777949,13.59559401,206.79,206.71,0.68]
[1759143778966,13.59559401,206.79,206.72,38.36]
[1759143779280,13.59559401,206.79,206.72,39.04]
[1759143779454,13.59559401,206.79,206.73,4.8372273]
[1759143779976,13.59559401,206.8,206.73,5.5172273]
[1759143780474,13.59559401,206.8,206.74,38.34]
[1759143780672,13.59559401,206.8,206.75,0.68]
[1759143780845,13.59559401,206.85,206.75,0.68]
[1759143781049,17.41833573,206.85,206.75,0.68]
[1759143781248,26.0,206.82,206.75,0.68]
[1759143781449,26.0,206.82,206.76,16.92783904]
[1759143781683,26.0,206.82,206.77,0.68]
[1759143781873,26.0,206.82,206.78,0.68]
[1759143782069,26.0,206.82,206.79,0.68]
[1759143782281,26.0,206.82,206.8,0.68]
[1759143782457,26.0,206.82,206.76,16.92783904]
[1759143782783,26.0,206.82,206.77,0.68]
[1759143782990,38.34,206.9,206.77,0.68]
[1759143782991,0.68,206.9,206.77,0.68]
[1759143783192,39.59559401,206.89,206.77,0.68]
[1759143783354,40.27559401,206.89,206.77,0.68]
[1759143783554,3.82274172,206.88,206.79,4.83582378]
[1759143783773,13.59559401,206.86,206.79,4.83582378]
[1759143784090,13.59559401,206.86,206.79,5.51582378]
[1759143784254,13.59559401,206.86,206.8,38.34]
[1759143784662,13.59559401,206.86,206.81,38.34]
[1759143784995,18.4295483,206.87,206.74,12.0921878]
[1759143785191,13.59559401,206.84,206.76,0.68]
[1759143786257,13.59559401,206.82,206.77,38.34]
[1759143786456,0.68,206.81,206.78,38.34]
[1759143787562,0.68,206.8,206.75,38.32]
[1759143787787,26.0,206.82,206.76,0.68]
[1759143787959,13.59559401,206.81,206.76,0.68]
[1759143788452,13.59559401,206.81,206.73,17.61029555]
[1759143788658,14.27559401,206.81,206.73,17.61029555]
[1759143788884,14.27559401,206.81,206.74,38.38]
[1759143789080,14.27559401,206.81,206.74,43.21695034]
[1759143789261,14.27559401,206.81,206.75,38.36]
[1759143789882,0.68,206.8,206.74,43.19695034]
[1759143790055,0.68,206.8,206.73,0.68]
[1759143790267,13.59559401,206.77,206.7,0.68]
[1759143790466,13.59559401,206.75,206.7,38.36]
[1759143790667,13.59559401,206.75,206.7,39.04]
[1759143790896,13.59559401,206.75,206.7,0.68]
[1759143791089,14.27559401,206.75,206.7,38.38]
[1759143791295,14.27559401,206.75,206.69,4.83813809]
[1759143791479,0.68,206.75,206.69,43.19813809]
[1759143792218,26.0,206.7,206.63,0.68]
[1759143792504,26.0,206.7,206.65,38.36]
[1759143792672,13.59559401,206.72,206.66,0.68]
[1759143793367,13.59559401,206.72,206.66,4.838731]
[1759143794493,13.59559401,206.72,206.66,16.93589542]
[1759143795075,13.59559401,206.72,206.66,55.29589542]
[1759143795387,13.59559401,206.72,206.66,43.198731]
[1759143795573,13.59559401,206.72,206.66,43.178731]
[1759143795890,14.31559401,206.72,206.66,4.838731]
[1759143796407,14.31559401,206.72,206.64,38.32]
[1759143796408,13.59559401,206.7,206.64,38.32]
[1759143796685,39.59559401,206.7,206.63,0.71]
[1759143796872,39.59559401,206.7,206.63,39.03]
[1759143797071,13.59559401,206.7,206.63,39.03]
[1759143797497,39.59559401,206.7,206.64,4.8393341]
[1759143797808,13.59559401,206.7,206.64,4.8393341]
[1759143798606,13.59559401,206.7,206.65,0.71]
[1759143798908,39.59559401,206.7,206.64,4.8393341]
[1759143799077,39.59559401,206.7,206.65,0.71]
[1759143799274,39.59559401,206.7,206.66,0.71]
[1759143799699,26.0,206.73,206.67,4.83863163]
[1759143799899,13.59559401,206.72,206.68,0.71]
[1759143800208,13.59559401,206.72,206.67,4.83863163]
[1759143800397,14.31559401,206.72,206.67,4.83863163]
[1759143800592,13.59559401,206.7,206.64,4.83915459]
[1759143800787,13.59559401,206.7,206.64,43.13915459]
[1759143800993,13.59559401,206.7,206.64,4.83915459]
[1759143801674,13.59559401,206.72,206.64,4.83915459]
[1759143801893,0.69,206.71,206.64,4.83915459]
[1759143802096,14.28559401,206.72,206.64,5.52915459]
[1759143802602,14.28559401,206.72,206.64,55.90748985]
[1759143802776,14.28559401,206.72,206.64,16.93748985]
[1759143802973,14.28559401,206.72,206.65,0.69]
[1759143804096,14.28559401,206.72,206.66,4.83886576]
[1759143806415,26.0,206.69,206.66,4.83886576]
[1759143807405,26.0,206.69,206.65,43.05906626]
[1759143807713,26.0,206.69,206.65,43.74906626]
[1759143807890,26.0,206.69,206.65,43.05906626]
[1759143808092,26.0,206.69,206.66,0.69]
[1759143808511,26.0,206.71,206.67,0.69]
[1759143808708,26.0,206.71,206.68,0.69]
[1759143808887,26.0,206.71,206.69,0.69]
[1759143809693,26.0,206.71,206.7,4.83792936]
[1759143809892,26.0,206.71,206.7,5.52792936]
[1759143810493,0.69,206.77,206.7,5.52792936]
[1759143810494,13.59559401,206.76,206.7,5.52792936]
[1759143810798,39.59559401,206.76,206.7,5.52792936]
[1759143810997,39.59559401,206.76,206.7,17.62275277]
[1759143811707,13.59559401,206.76,206.7,17.62275277]
[1759143811905,39.59559401,206.76,206.7,17.62275277]
[1759143812811,40.28559401,206.76,206.7,5.52792936]
[1759143815705,0.69,206.75,206.7,4.83792936]
[1759143815902,39.59559401,206.76,206.7,4.83792936]
[1759143816106,0.69,206.75,206.7,4.83792936]
[1759143816718,13.59559401,206.72,206.66,0.69]
[1759143816918,13.59559401,206.72,206.64,0.69]
[1759143817125,13.59559401,206.72,206.65,38.14]
[1759143817300,13.59559401,206.72,206.66,0.69]
[1759143818398,14.28559401,206.72,206.66,0.69]
[1759143818598,14.28559401,206.72,206.63,16.93848908]
[1759143818800,13.59559401,206.68,206.63,5.52956831]
[1759143819014,14.28559401,206.68,206.64,38.12]
[1759143819604,14.28559401,206.68,206.63,5.52956831]
[1759143819917,14.28559401,206.68,206.64,38.12]
[1759143820101,13.59559401,206.68,206.64,0.69]
[1759143820306,13.59559401,206.68,206.65,0.69]
[1759143820809,13.59559401,206.68,206.66,4.83886576]
[1759143822206,0.69,206.71,206.67,0.69]
[1759143822207,26.0,206.71,206.67,0.69]
[1759143822418,26.0,206.68,206.67,0.69]
[1759143822620,26.0,206.68,206.66,4.83886576]
[1759143822926,26.0,206.68,206.66,5.52886576]